fUSD/lending_fUSD_20240412
["ID","MTS","AMOUNT","RATE_DAILY","PERIOD"]
[322360078,1712965844949,-162.28190367,0.00035736,7]
[322360079,1712965844958,-2289.0,0.00035737,2]
[322360080,1712965844968,-1390.0,0.00035737,2]
[322360081,1712965844977,-972.52,0.00035737,2]
[322360082,1712965844986,-460.0,0.00035737,2]
[322360083,1712965844996,-540.0,0.00035737,2]
[322360084,1712965845005,-1270.358,0.00035737,2]
[322360085,1712965845014,-151.484,0.00035737,2]
[322360086,1712965845023,-1228.0,0.00035737,2]
[322360087,1712965845032,-811.723,0.00035737,2]
[322360088,1712965845041,-280.926,0.00035737,2]
[322360089,1712965845051,-436.0,0.00035737,2]
[322360090,1712965845060,-608.0,0.00035737,2]
[322360091,1712965845069,-1947.0,0.00035737,2]
[322360092,1712965845078,-3041.0,0.00035737,2]
[322360093,1712965845087,-152.655,0.00035737,2]
[322360094,1712965845096,-1140.0,0.00035737,2]
[322360095,1712965845106,-1534.76,0.00035737,2]
[322360096,1712965845114,-398.0,0.00035737,2]
[322360097,1712965845124,-1636.0,0.00035737,2]
[322360098,1712965845135,-2438.0,0.00035737,2]
[322360099,1712965845147,-446.844,0.00035737,2]
[322360100,1712965845155,-215.0,0.00035737,2]
[322360101,1712965845165,-442.0,0.00035737,2]
[322360102,1712965845175,-37595.0,0.00035737,2]
[322360103,1712965845184,-150.889,0.00035737,2]
[322360104,1712965845194,-4799.0,0.00035737,2]
[322360105,1712965845204,-5715.0,0.00035737,2]
[322360106,1712965845215,-151.0,0.00035737,2]
[322360107,1712965845224,-2464.0,0.00035737,2]
[322360108,1712965845234,-154.57,0.00035737,2]
[322360109,1712965845243,-1436.972,0.00035737,2]
[322360110,1712965845253,-266.408,0.00035737,2]
[322360111,1712965845262,-1053.0,0.00035737,2]
[322360112,1712965845271,-199.90692644,0.00035742,7]
[322360113,1712965845281,-160.73226689,0.00035811,7]
[322360114,1712965845289,-226.61,0.00035894,120]
[322360115,1712965845298,-156.07725532,0.00035913,7]
[322360116,1712965845307,-179.55,0.00035945,30]
[322360117,1712965845316,-404.876,0.00035945,30]
[322360118,1712965845325,-1690.0,0.00035945,120]
[322360119,1712965845336,-150.0,0.00035945,30]
[322360120,1712965845346,-150.0,0.00035945,30]
[322360121,1712965845356,-273.24,0.00035945,30]
[322360122,1712965845367,-191.0,0.00035945,30]
[322360123,1712965845377,-268.15226882,0.00035945,60]
[322360124,1712965845386,-238.0,0.00035945,30]
[322360125,1712965845399,-154.05041663,0.00035945,19]
[322360126,1712965845409,-154.05041663,0.00035945,19]
[322360127,1712965845418,-199.90692644,0.0003596,7]
[322360128,1712965845427,-2000.0,0.00036,2]
[322360129,1712965845437,-242.40733193,0.00036118,7]
[322360130,1712965845446,-152.17,0.00036164,2]
[322360131,1712965845456,-153.00455983,0.00036192,7]
[322360132,1712965845466,-1402.03542149,0.00036193,2]
[322360133,1712965845476,-2380.29993969,0.00036193,2]
[322360134,1712965845487,-199.90692644,0.00036272,7]
[322360135,1712965845497,-242.40733193,0.00036458,7]
[322360136,1712965845506,-242.40733193,0.00036477,7]
[322360137,1712965845515,-178.041308,0.00036498,42]
[322360138,1712965845525,-154.73038889,0.00036508,7]
[322360139,1712965845534,-242.40733193,0.00036533,7]
[322360140,1712965845544,-303.5158865,0.0003656,7]
[322360141,1712965845553,-521.0,0.00036575,7]
[322360142,1712965845563,-153.00455983,0.00036628,7]
[322360143,1712965845711,-153.34610378,0.0003667,7]
[322360144,1712965845721,-150.0,0.000367,22]
[322360145,1712965845731,-472.742093,0.000367,120]
[322360146,1712965845740,-166.0,0.0003672,24]
[322360147,1712965845749,-153.00455983,0.00036785,7]
[322360148,1712965845759,-153.90252396,0.0003679,7]
[322360149,1712965845768,-214.97154156,0.000369,2]
[322360150,1712965845777,-214.9715414,0.000369,2]
[322360151,1712965845786,-214.9715414,0.000369,2]
[322360152,1712965845796,-214.9715414,0.000369,2]
[322360153,1712965845805,-214.9715414,0.000369,2]
[322360154,1712965845815,-214.9715414,0.000369,2]
[322360155,1712965845824,-214.9715414,0.000369,2]
[322360156,1712965845833,-214.9715414,0.000369,2]
[322360157,1712965845842,-214.9715414,0.000369,2]
[322360158,1712965845851,-162.97508016,0.00036908,7]
[322360159,1712965845860,-1100.0,0.00037,3]
[322360160,1712965845870,-622.44,0.00037101,2]
[322360161,1712965845879,-153.90252396,0.00037172,7]
[322360162,1712965845888,-162.28190367,0.00037224,7]
[322360163,1712965845900,-160.73226689,0.00037224,7]
[322360164,1712965845909,-242.40733193,0.00037274,7]
[322360165,1712965845920,-207.84642367,0.00037356,8]
[322360166,1712965845929,-153.34610378,0.00037425,7]
[322360167,1712965845939,-154.90408122,0.00037489,7]
[322360168,1712965845949,-314.041308,0.00037498,43]
[322360169,1712965845959,-303.5158865,0.00037502,7]
[322360170,1712965845969,-214.9715414,0.00037573,2]
[322360171,1712965845978,-798.0,0.00037627,5]
[322360172,1712965845987,-242.40733193,0.0003768,7]
[322360173,1712965845997,-158.14981821,0.00037704,7]
[322360174,1712965846007,-1868.94,0.000378,3]
[322360175,1712965846018,-1868.94,0.000378,3]
[322360176,1712965846027,-1868.94,0.000378,3]
[322360177,1712965846036,-1868.94,0.000378,3]
[322360178,1712965846045,-1868.94,0.000378,3]
[322360179,1712965846054,-1868.94,0.000378,3]
[322360180,1712965846064,-1868.94,0.000378,3]
[322360181,1712965846073,-1868.94,0.000378,3]
[322360182,1712965846082,-1868.94,0.000378,3]
[322360183,1712965846091,-1868.94,0.000378,3]
[322360184,1712965846100,-1868.94,0.000378,3]
[322360185,1712965846109,-1868.94,0.000378,3]
[322360186,1712965846120,-1868.94,0.000378,3]
[322360187,1712965846133,-1868.94,0.000378,3]
[322360188,1712965846143,-1868.94,0.000378,3]
[322360189,1712965846152,-1868.94,0.000378,3]
[322360190,1712965846161,-1868.94,0.000378,3]
[322360191,1712965846171,-1868.94,0.000378,3]
[322360192,1712965846180,-1868.94,0.000378,3]
[322360193,1712965846189,-1868.94,0.000378,3]
[322360194,1712965846199,-154.33,0.000378,3]
[322360196,1712965846209,-154.33,0.000378,3]
[322360198,1712965846218,-154.33,0.000378,3]
[322360199,1712965846228,-154.33,0.000378,3]
[322360200,1712965846237,-154.33,0.000378,3]
[322360201,1712965846247,-154.33,0.000378,3]
[322360202,1712965846257,-154.33,0.000378,3]
[322360203,1712965846269,-154.33,0.000378,3]
[322360204,1712965846279,-521.0,0.00037808,7]
[322360205,1712965846289,-161.73578536,0.00037898,7]
[322360206,1712965846299,-156.39421651,0.00037986,7]
[322360207,1712965846310,-602.22,0.00038027,15]
[322360208,1712965846320,-153.34610378,0.00038051,7]
[322360209,1712965846330,-1000.0,0.00038071,2]
[322360210,1712965846339,-155.0,0.00038173,4]
[322360211,1712965846349,-171.92569789,0.00038195,7]
[322360212,1712965846359,-1402.03542149,0.00038291,2]
[322360213,1712965846369,-2380.29993969,0.00038291,2]
[322360214,1712965846378,-154.90408122,0.00038345,7]
[322360215,1712965846388,-156.46012929,0.00038396,7]
[322360216,1712965846399,-413.84442539,0.0003842,30]
[322360217,1712965846409,-214.9715414,0.00038425,2]
[322360218,1712965846419,-242.40733193,0.0003843,7]
[322360219,1712965846429,-303.5158865,0.00038455,7]
[322360220,1712965846439,-314.041308,0.00038498,44]
[322360221,1712965846450,-166.0,0.0003856,28]
[322360222,1712965846460,-999.24,0.000386,2]
[322360223,1712965846471,-578.184645,0.000386,2]
[322360224,1712965846480,-3602.0,0.0003868,4]
[322360225,1712965846489,-150.0,0.00038689,120]
[322360226,1712965846499,-2287.0,0.00038737,2]
[322360227,1712965846509,-967.0,0.00038737,2]
[322360228,1712965846518,-1388.0,0.00038737,2]
[322360229,1712965846529,-283.668,0.00038737,2]
[322360230,1712965846539,-540.0,0.00038737,2]
[322360231,1712965846549,-150.0,0.00038737,2]
[322360232,1712965846558,-1228.0,0.00038737,2]
[322360233,1712965846569,-807.0,0.00038737,2]
[322360234,1712965846578,-280.0,0.00038737,2]
[322360235,1712965846588,-434.0,0.00038737,2]
[322360236,1712965846598,-606.0,0.00038737,2]
[322360237,1712965846607,-1947.0,0.00038737,2]
[322360238,1712965846616,-3037.0,0.00038737,2]
[322360239,1712965846626,-150.0,0.00038737,2]
[322360240,1712965846635,-1140.0,0.00038737,2]
[322360241,1712965846646,-1471.0,0.00038737,2]
[322360242,1712965846655,-398.0,0.00038737,2]
[322360243,1712965846665,-1634.0,0.00038737,2]
[322360244,1712965846676,-2436.0,0.00038737,2]
[322360245,1712965846686,-354.0,0.00038737,2]
[322360246,1712965846696,-214.0,0.00038737,2]
[322360247,1712965846705,-442.0,0.00038737,2]
[322360248,1712965846715,-37595.0,0.00038737,2]
[322360249,1712965846725,-4799.0,0.00038737,2]
[322360250,1712965846735,-5707.0,0.00038737,2]
[322360251,1712965846745,-2462.0,0.00038737,2]
[322360252,1712965846754,-1314.0,0.00038737,2]
[322360253,1712965846764,-266.708,0.00038737,2]
[322360254,1712965846774,-157.42754868,0.00038819,7]
[322360255,1712965846783,-161.37,0.00038847,2]
[322360256,1712965846792,-153.00455983,0.00038847,7]
[322360257,1712965846802,-9059.27420595,0.00038873,12]
[322360258,1712965846812,-4072.29619757,0.000389,15]
[322360259,1712965846822,-3400.0,0.000389,14]
[322360260,1712965846832,-232.08,0.00038933,2]
[322360261,1712965846841,-303.5158865,0.00038945,7]
[322360262,1712965846852,-457.39428952,0.00038971,4]
[322360263,1712965846861,-15274.63761442,0.00038972,14]
[322360264,1712965846870,-3686.0,0.00038973,4]
[322360265,1712965846880,-3686.0,0.00038973,4]
[322360266,1712965846889,-2084.0,0.00038973,4]
[322360267,1712965846901,-632.25287615,0.00039,4]
[322360268,1712965846909,-1022.306478,0.00039,30]
[322360269,1712965846918,-155.0,0.00039,4]
[322360270,1712965846928,-1150.0,0.00039,3]
[322360271,1712965846937,-5669.09672389,0.00039,2]
[322360272,1712965846947,-151.26482744,0.00039028,3]
[322360273,1712965846956,-521.0,0.00039041,7]
[322360274,1712965846965,-154.73038889,0.00039148,7]
[322360275,1712965846975,-199.90692644,0.00039221,7]
[322360276,1712965846984,-303.5158865,0.00039242,7]
[322360277,1712965846993,-214.9715414,0.00039278,2]
[322360278,1712965847002,-303.5158865,0.0003932,7]
[322360279,1712965847011,-199.90692644,0.00039357,7]
[322360280,1712965847020,-622.44,0.00039365,2]
[322360281,1712965847030,-152.0,0.00039374,3]
[322360282,1712965847039,-152.43488089,0.0003944,4]
[322360283,1712965847048,-153.00455983,0.00039441,7]
[322360284,1712965847057,-150.0,0.00039449,120]
[322360285,1712965847066,-152.17,0.00039452,2]
[322360286,1712965847075,-314.041308,0.00039498,45]
[322360287,1712965847085,-158846.63357889,0.000395,30]
[322360288,1712965847094,-199.90692644,0.00039637,7]
[322360289,1712965847104,-156.07725532,0.00039644,7]
[322360290,1712965847113,-154.90408122,0.00039646,7]
[322360291,1712965847124,-153.00455983,0.00039748,7]
[322360292,1712965847134,-207.84642367,0.00039841,9]
[322360293,1712965847146,-9059.27420588,0.00039857,13]
[322360294,1712965847155,-153.16775031,0.00039885,7]
[322360295,1712965847165,-504.23654019,0.0004,120]
[322360296,1712965847175,-27119.35776358,0.0004,4]
[322360297,1712965847185,-22126.04814087,0.0004,4]
[322360298,1712965847194,-210.37183016,0.0004,120]
[322360299,1712965847205,-219.29449371,0.0004,30]
[322360300,1712965847216,-266.37502491,0.0004,30]
[322360301,1712965847227,-193.0576741,0.0004,2]
[322360302,1712965847236,-2851.76652198,0.0004,5]
[322360303,1712965847246,-300.0,0.0004,7]
[322360304,1712965847255,-214.9715414,0.0004013,2]
[322360305,1712965847265,-521.0,0.00040274,7]
[322360306,1712965847275,-154.73038889,0.00040381,30]
[322360307,1712965847286,-1402.03542149,0.00040389,2]
[322360308,1712965847295,-2380.29993969,0.00040389,2]
[322360309,1712965847305,-303.5158865,0.00040389,30]
[322360310,1712965847314,-189.0,0.000404,31]
[322360311,1712965847324,-157.37244982,0.00040405,30]
[322360312,1712965847333,-153.34610378,0.00040466,30]
[322360313,1712965847343,-154.73038889,0.00040495,30]
[322360314,1712965847353,-314.041308,0.00040498,45]
[322360315,1712965847362,-153.16775031,0.00040741,30]
[322360316,1712965847372,-199.90692644,0.00040743,30]
[322360317,1712965847382,-602.22,0.00040767,15]
[322360318,1712965847391,-156.39421651,0.00040795,30]
[322360319,1712965847400,-303.5158865,0.00040822,30]
[322360320,1712965847410,-9059.27420588,0.00040842,14]
[322360321,1712965847420,-214.9715414,0.00040983,2]
[322360322,1712965847430,-154.90408122,0.00040988,30]
[322360323,1712965847439,-1200.0,0.00041,3]
[322360324,1712965847449,-154.73038889,0.00041082,30]
[322360325,1712965847458,-157.0,0.00041096,2]
[322360326,1712965847468,-3412.0,0.000411,2]
[322360327,1712965847478,-152.43488084,0.00041123,10]
[322360328,1712965847487,-152.0,0.00041143,3]
[322360329,1712965847497,-153.00455983,0.00041184,30]
[322360330,1712965847506,-156.46012929,0.00041444,30]
[322360331,1712965847516,-314.041308,0.00041498,46]
[322360332,1712965847525,-521.0,0.00041507,7]
[322360333,1712965847534,-1000.0,0.00041531,2]
[322360334,1712965847544,-154.73038889,0.00041545,30]
[322360335,1712965847553,-1541.83524312,0.000416,2]
[322360336,1712965847562,-622.44,0.00041629,2]
[322360337,1712965847571,-153.00455983,0.00041648,30]
[322360338,1712965847581,-1868.94,0.000417,4]
[322360339,1712965847591,-1868.94,0.000417,4]
[322360340,1712965847601,-1868.94,0.000417,4]
[322360341,1712965847610,-1868.94,0.000417,4]
[322360342,1712965847620,-1868.94,0.000417,4]
[322360343,1712965847630,-1868.94,0.000417,4]
[322360344,1712965847639,-1868.94,0.000417,4]
[322360345,1712965847650,-1868.94,0.000417,4]
[322360346,1712965847659,-1868.94,0.000417,4]
[322360347,1712965847669,-1868.94,0.000417,4]
[322360348,1712965847678,-1868.94,0.000417,4]
[322360349,1712965847819,-1868.94,0.000417,4]
[322360350,1712965847829,-1868.94,0.000417,4]
[322360351,1712965847839,-1868.94,0.000417,4]
[322360352,1712965847849,-1868.94,0.000417,4]
[322360353,1712965847858,-1868.94,0.000417,4]
[322360354,1712965847867,-1868.94,0.000417,4]
[322360355,1712965847876,-1868.94,0.000417,4]
[322360356,1712965847886,-1868.94,0.000417,4]
[322360357,1712965847896,-1868.94,0.000417,4]
[322360358,1712965847906,-154.33,0.000417,4]
[322360359,1712965847914,-154.33,0.000417,4]
[322360360,1712965847924,-154.33,0.000417,4]
[322360361,1712965847933,-154.33,0.000417,4]
[322360362,1712965847942,-154.33,0.000417,4]
[322360363,1712965847952,-154.33,0.000417,4]
[322360364,1712965847961,-154.33,0.000417,4]
[322360365,1712965847970,-154.33,0.000417,4]
[322360366,1712965847980,-242.40733193,0.00041716,30]
[322360367,1712965847989,-1228.0,0.00041737,2]
[322360368,1712965847998,-1180.344,0.00041737,2]
[322360369,1712965848007,-1471.0,0.00041737,2]
[322360370,1712965848017,-158.77193514,0.00041737,2]
[322360371,1712965848519,-225.28306486,0.00041737,2]
[322360372,1712965848529,-354.0,0.00041737,2]
[322360373,1712965848539,-214.0,0.00041737,2]
[322360374,1712965848548,-4719.469,0.00041737,2]
[322360375,1712965848557,-3688.527,0.00041737,2]
[322360376,1712965848567,-9059.27420588,0.00041826,16]
[322360377,1712965848576,-162.28190367,0.0004183,30]
[322360378,1712965848585,-214.9715414,0.00041835,2]
[322360379,1712965848595,-153.00455983,0.00041886,30]
[322360380,1712965848604,-153.0,0.00041888,6]
[322360381,1712965848614,-303.5158865,0.00041892,30]
[322360382,1712965848623,-242.40733193,0.00041902,30]
[322360383,1712965848632,-242.40733193,0.00041961,30]
[322360384,1712965848641,-497.70056021,0.00042,120]
[322360385,1712965848655,-150.77,0.00042009,2]
[322360386,1712965848664,-242.40733193,0.00042119,30]
[322360387,1712965848674,-303.5158865,0.00042188,30]
[322360388,1712965848684,-162.07,0.00042229,2]
[322360389,1712965848694,-348.87,0.00042229,2]
[322360390,1712965848703,-207.84642367,0.00042326,10]
[322360391,1712965848713,-156.46012929,0.00042437,30]
[322360392,1712965848723,-1402.03542149,0.00042487,2]
[322360393,1712965848732,-2380.29993969,0.00042487,2]
[322360394,1712965848741,-314.041308,0.00042498,46]
[322360395,1712965848751,-153.00455983,0.00042562,30]
[322360396,1712965848760,-214.9715414,0.00042688,2]
[322360397,1712965848770,-521.0,0.00042739,7]
[322360398,1712965848779,-152.17,0.0004274,2]
[322360399,1712965848788,-152.43488084,0.00042805,17]
[322360400,1712965848797,-9059.27420588,0.0004281,17]
[322360401,1712965848806,-156.46012929,0.00042869,30]
[322360402,1712965848815,-161.73578536,0.00042885,30]
[322360403,1712965848824,-962.68936662,0.0004289,10]
[322360404,1712965848833,-1423.857659,0.000429,39]
[322360405,1712965848843,-153.34610378,0.00042952,30]
[322360406,1712965848852,-16267.19686496,0.00043,5]
[322360407,1712965848861,-1250.0,0.00043,3]
[322360408,1712965848870,-104044.21863828,0.00043,30]
[322360409,1712965848884,-2927.61629193,0.00043,30]
[322360410,1712965848893,-154.73038889,0.0004303,30]
[322360411,1712965848903,-161.64,0.00043051,2]
[322360412,1712965848912,-150.0,0.00043051,2]
[322360413,1712965848922,-1041.72,0.00043051,2]
[322360414,1712965848932,-416.24,0.00043051,2]
[322360415,1712965848941,-150.0,0.00043051,2]
[322360416,1712965848951,-150.0,0.00043051,2]
[322360417,1712965848960,-473.8,0.00043051,2]
[322360418,1712965848969,-157.72,0.00043051,2]
[322360419,1712965848979,-150.0,0.00043051,2]
[322360420,1712965848988,-150.0,0.00043051,2]
[322360421,1712965848997,-150.0,0.00043051,2]
[322360422,1712965849006,-157.37244982,0.0004311,30]
[322360423,1712965849015,-1036.2,0.00043155,2]
[322360424,1712965849025,-150.0,0.00043155,2]
[322360425,1712965849240,-418.16,0.00043155,2]
[322360426,1712965849250,-907.52,0.00043155,2]
[322360427,1712965849259,-150.0,0.00043155,2]
[322360428,1712965849268,-349.62,0.00043155,2]
[322360429,1712965849278,-150.0,0.00043155,2]
[322360430,1712965849288,-150.0,0.00043155,2]
[322360431,1712965849301,-418.16,0.00043155,2]
[322360432,1712965849311,-162.36,0.00043155,2]
[322360433,1712965849320,-150.0,0.00043155,2]
[322360434,1712965849330,-349.62,0.00043155,2]
[322360435,1712965849339,-907.52,0.00043155,2]
[322360436,1712965849349,-150.0,0.00043155,2]
[322360437,1712965849358,-150.0,0.00043155,2]
[322360438,1712965849369,-150.0,0.00043155,2]
[322360439,1712965849378,-150.0,0.00043155,2]
[322360440,1712965849387,-412.01,0.00043155,2]
[322360441,1712965849398,-418.16,0.00043155,2]
[322360442,1712965849407,-150.0,0.00043155,2]
[322360443,1712965849416,-162.36,0.00043155,2]
[322360444,1712965849426,-150.0,0.00043155,2]
[322360445,1712965849435,-349.62,0.00043155,2]
[322360446,1712965849444,-150.0,0.00043155,2]
[322360447,1712965849453,-150.0,0.00043155,2]
[322360448,1712965849462,-150.0,0.00043155,2]
[322360449,1712965849472,-907.52,0.00043155,2]
[322360450,1712965849482,-418.16,0.00043155,2]
[322360451,1712965849490,-150.0,0.00043155,2]
[322360452,1712965849499,-162.36,0.00043155,2]
[322360453,1712965849508,-150.0,0.00043155,2]
[322360454,1712965849517,-150.0,0.00043155,2]
[322360455,1712965849526,-418.16,0.00043155,2]
[322360456,1712965849535,-907.52,0.00043155,2]
[322360457,1712965849545,-150.0,0.00043155,2]
[322360458,1712965849554,-412.01,0.00043155,2]
[322360459,1712965849563,-162.36,0.00043155,2]
[322360460,1712965849574,-150.0,0.00043155,2]
[322360461,1712965849583,-150.0,0.00043155,2]
[322360462,1712965849592,-907.52,0.00043155,2]
[322360463,1712965849601,-150.0,0.00043155,2]
[322360464,1712965849610,-162.36,0.00043155,2]
[322360465,1712965849620,-907.52,0.00043155,2]
[322360466,1712965849629,-150.0,0.00043155,2]
[322360467,1712965849638,-150.0,0.00043155,2]
[322360468,1712965849649,-412.01,0.00043155,2]
[322360469,1712965849658,-836.32,0.00043155,2]
[322360470,1712965849667,-907.52,0.00043155,2]
[322360471,1712965849677,-162.36,0.00043155,2]
[322360472,1712965849686,-150.0,0.00043155,2]
[322360473,1712965849695,-907.52,0.00043155,2]
[322360474,1712965849704,-150.0,0.00043155,2]
[322360475,1712965849714,-150.0,0.00043155,2]
[322360476,1712965849723,-150.0,0.00043155,2]
[322360477,1712965849733,-150.0,0.00043155,2]
[322360478,1712965849742,-150.0,0.00043155,2]
[322360479,1712965849751,-150.0,0.00043155,2]
[322360480,1712965849761,-150.0,0.00043155,2]
[322360481,1712965849770,-150.0,0.00043155,2]
[322360482,1712965849780,-150.0,0.00043155,2]
[322360483,1712965849790,-150.0,0.00043155,2]
[322360484,1712965849800,-150.0,0.00043155,2]
[322360485,1712965849809,-418.16,0.00043155,2]
[322360486,1712965849821,-173.02,0.00043155,2]
[322360487,1712965849830,-150.0,0.00043155,2]
[322360488,1712965849840,-907.52,0.00043155,2]
[322360489,1712965849849,-161.5,0.00043155,2]
[322360490,1712965849859,-150.0,0.00043155,2]
[322360491,1712965849868,-418.16,0.00043155,2]
[322360492,1712965849877,-300.0,0.00043155,2]
[322360493,1712965849887,-907.52,0.00043155,2]
[322360494,1712965849897,-150.0,0.00043155,2]
[322360495,1712965849906,-300.8,0.00043155,2]
[322360496,1712965849915,-150.0,0.00043155,2]
[322360497,1712965849925,-418.16,0.00043155,2]
[322360498,1712965849934,-412.01,0.00043155,2]
[322360499,1712965849943,-150.0,0.00043155,2]
[322360500,1712965849952,-907.52,0.00043155,2]
[322360501,1712965849962,-150.0,0.00043155,2]
[322360502,1712965849971,-418.16,0.00043155,2]
[322360503,1712965849981,-150.0,0.00043155,2]
[322360504,1712965849990,-412.01,0.00043155,2]
[322360505,1712965849999,-150.0,0.00043155,2]
[322360506,1712965850009,-418.16,0.00043155,2]
[322360507,1712965850018,-714.88,0.00043155,2]
[322360508,1712965850027,-412.01,0.00043155,2]
[322360509,1712965850037,-150.0,0.00043155,2]
[322360510,1712965850046,-150.0,0.00043155,2]
[322360511,1712965850056,-412.01,0.00043155,2]
[322360512,1712965850065,-150.0,0.00043155,2]
[322360513,1712965850074,-150.0,0.00043155,2]
[322360514,1712965850084,-150.0,0.00043155,2]
[322360515,1712965850117,-412.01,0.00043155,2]
[322360516,1712965850145,-330.45,0.00043155,2]
[322360517,1712965850172,-418.16,0.00043155,2]
[322360518,1712965850197,-254.73,0.00043155,2]
[322360519,1712965850215,-181.77,0.00043155,2]
[322360520,1712965850236,-214.4,0.00043155,2]
[322360521,1712965850255,-824.02,0.00043155,2]
[322360522,1712965850273,-628.041308,0.00043198,45]
[322360523,1712965850297,-151.0,0.00043257,2]
[322360524,1712965850316,-156.25990877,0.00043288,30]
[322360525,1712965850336,-628.041308,0.00043298,52]
[322360526,1712965850357,-303.5158865,0.0004337,30]
[322360527,1712965850372,-628.041308,0.00043398,54]
[322360528,1712965850388,-628.041308,0.00043498,45]
[322360529,1712965850408,-602.22,0.00043507,15]
[322360530,1712965850421,-214.9715414,0.0004354,2]
[322360531,1712965850440,-628.041308,0.00043598,53]
[322360532,1712965850465,-628.041308,0.00043698,55]
[322360533,1712965850482,-199.90692644,0.00043785,30]
[322360534,1712965850500,-9059.27420588,0.00043794,18]
[322360535,1712965850517,-152.0,0.00043796,4]
[322360536,1712965850533,-628.041308,0.00043798,45]
[322360537,1712965850549,-199.90692644,0.00043825,30]
[322360538,1712965850564,-3612.38,0.00043836,2]
[322360539,1712965850586,-2616.65,0.00043836,2]
[322360540,1712965850611,-2223.73711434,0.00043883,2]
[322360541,1712965850644,-622.44,0.00043893,2]
[322360542,1712965850664,-521.0,0.00043972,7]
[322360543,1712965850681,-162.28190371,0.00043983,30]
[322360544,1712965850699,-302.0,0.00043984,4]
[322360545,1712965850715,-154.73038889,0.00043984,30]
[322360546,1712965850732,-154.90408122,0.00044183,30]
[322360547,1712965850747,-628.041308,0.00044198,46]
[322360548,1712965850764,-199.90692644,0.00044202,30]
[322360549,1712965850780,-153.90252396,0.00044262,30]
[322360550,1712965850795,-628.041308,0.00044298,52]
[322360551,1712965850811,-150.0,0.00044343,120]
[322360552,1712965850828,-156.46012929,0.00044363,30]
[322360553,1712965850844,-242.40733193,0.00044383,30]
[322360554,1712965850862,-214.9715414,0.00044393,2]
[322360555,1712965850879,-628.041308,0.00044398,55]
[322360556,1712965850897,-153.90252396,0.00044436,30]
[322360557,1712965850914,-157.42754868,0.00044451,30]
[322360558,1712965850930,-160.73226689,0.00044455,30]
[322360559,1712965850946,-153.90252396,0.00044456,30]
[322360560,1712965850962,-152.43488084,0.00044488,23]
[322360561,1712965850977,-628.041308,0.00044498,46]
[322360562,1712965850994,-153.00455983,0.00044505,30]
[322360563,1712965851010,-157.42754868,0.00044582,30]
[322360564,1712965851026,-1402.03542149,0.00044584,2]
[322360565,1712965851041,-2380.29993969,0.00044584,2]
[322360566,1712965851056,-628.041308,0.00044598,53]
[322360567,1712965851082,-628.041308,0.00044698,55]
[322360568,1712965851102,-232.08,0.00044701,2]
[322360569,1712965851120,-604.0,0.00044723,7]
[322360570,1712965851141,-354.0,0.00044737,2]
[322360571,1712965851158,-214.0,0.00044737,2]
[322360572,1712965851177,-9059.27420588,0.00044779,19]
[322360573,1712965851194,-628.041308,0.00044798,46]
[322360574,1712965851211,-207.84642367,0.00044812,12]
[322360575,1712965851227,-161.73578536,0.00044859,30]
[322360576,1712965851243,-9391.43798999,0.000449,30]
[322360577,1712965851258,-5200.0,0.000449,16]
[322360578,1712965851273,-199.90692644,0.00044904,30]
[322360579,1712965851288,-303.5158865,0.00044931,30]